fUSD/lending_fUSD_20250422
["ID","MTS","AMOUNT","RATE_DAILY","PERIOD"]
[358614481,1745311978906,-500.0,0.00054794,120]
[358614482,1745311978934,-523.03,0.00054794,120]
[358614483,1745311978963,-500.0,0.00054794,120]
[358614484,1745311978989,-500.0,0.00054794,120]
[358614485,1745311979016,-500.0,0.00054794,120]
[358614486,1745311979042,-500.0,0.00054794,120]
[358614487,1745311979069,-151.0,0.00054794,120]
[358614488,1745311979097,-500.0,0.00054794,120]
[358614489,1745311979122,-500.0,0.00054794,120]
[358614490,1745311979150,-500.0,0.00054794,120]
[358614491,1745311979176,-500.0,0.00054794,120]
[358614492,1745311979202,-500.0,0.00054794,120]
[358614493,1745311979228,-500.0,0.00054794,120]
[358614494,1745311979254,-500.0,0.00054794,56]
[358614495,1745311979284,-500.0,0.00054794,120]
[358614496,1745311979311,-230.5272967,0.00054794,120]
[358614497,1745311979338,-500.0,0.00054794,120]
[358614498,1745311979365,-2367.21,0.00054794,120]
[358614499,1745311979391,-83185.02,0.00054794,120]
[358614500,1745311979418,-500.0,0.00054794,120]
[358614501,1745311979444,-500.0,0.00054794,120]
[358614502,1745311979470,-175.0,0.00054795,30]
[358614503,1745311979495,-150.0,0.00054795,120]
[358614504,1745311979521,-150.0,0.00054795,120]
[358614505,1745311979546,-273.21047026,0.00054795,120]
[358614506,1745311979572,-150.0,0.00054795,120]
[358614507,1745311979601,-150.0,0.00054795,120]
[358614508,1745311979627,-150.0,0.00054795,120]
[358614509,1745311979653,-150.0,0.00054795,120]
[358614510,1745311979678,-150.0,0.00054795,120]
[358614511,1745311979703,-150.0,0.00054795,120]
[358614512,1745311979729,-500.0,0.00054795,120]
[358614513,1745311979753,-518.5,0.00054795,120]
[358614514,1745311979780,-1066.67408995,0.00054795,120]
[358614515,1745311979806,-282.40102946,0.00054795,120]
[358614516,1745311979832,-557.21364622,0.00054795,120]
[358614517,1745311979860,-226.82,0.000548,60]
[358614518,1745311979887,-999.0,0.00054821,120]
[358614519,1745311979913,-150.0,0.00054825,120]
[358614520,1745311979939,-273.21047026,0.00054827,120]
[358614521,1745311979965,-150.0,0.00054837,120]
[358614522,1745311979992,-150.0,0.00054859,120]
[358614523,1745311980018,-273.21047026,0.00054859,120]
[358614524,1745311980044,-150.0,0.00054863,120]
[358614525,1745311980072,-150.0,0.0005488,120]
[358614526,1745311980114,-150.0,0.00054889,120]
[358614527,1745311980143,-273.21047026,0.00054892,120]
[358614528,1745311980170,-194.0,0.000549,61]
[358614529,1745311980198,-150.0,0.00054905,120]
[358614530,1745311980225,-150.0,0.00054923,120]
[358614531,1745311980254,-150.0,0.00054923,120]
[358614532,1745311980280,-273.21047026,0.00054924,120]
[358614533,1745311980308,-150.0,0.00054931,120]
[358614534,1745311980335,-273.21047026,0.00054956,120]
[358614535,1745311980364,-150.0,0.00054965,120]
[358614536,1745311980391,-150.0,0.00054983,120]
[358614537,1745311980418,-150.0,0.00054987,120]
[358614538,1745311980445,-273.21047026,0.00054989,120]
[358614539,1745311980471,-1000.0,0.00054999,120]
[358614540,1745311980497,-150.0,0.00054999,120]
[358614541,1745311980526,-50000.0,0.00055,55]
[358614542,1745311980552,-500.0,0.00055,120]
[358614543,1745311980580,-1031.0,0.00055,120]
[358614544,1745311980611,-200.0,0.00055,30]
[358614545,1745311980638,-3000.0,0.00055,30]
[358614546,1745311980666,-183.03816543,0.00055,120]
[358614547,1745311980693,-151.0,0.00055,120]
[358614548,1745311980722,-151.0,0.00055,120]
[358614549,1745311980749,-191.889919,0.00055,120]
[358614550,1745311980777,-205.755708,0.00055,120]
[358614551,1745311980809,-2637.987686,0.00055,120]
[358614552,1745311980837,-2637.987686,0.00055,120]
[358614553,1745311980865,-611.122299,0.00055,120]
[358614554,1745311980892,-611.122299,0.00055,120]
[358614555,1745311980919,-151.0,0.00055,120]
[358614556,1745311980944,-151.0,0.00055,120]
[358614557,1745311980970,-150.0,0.00055008,120]
[358614558,1745311980996,-150.0,0.00055016,120]
[358614559,1745311981024,-273.21047026,0.00055021,120]
[358614560,1745311981058,-900.0,0.00055025,120]
[358614561,1745311981094,-2100.0,0.00055034,120]
[358614562,1745311981126,-150.0,0.00055051,120]
[358614563,1745311981160,-150.0,0.00055051,120]
[358614564,1745311981192,-273.21047026,0.00055053,120]
[358614565,1745311981221,-150.0,0.00055067,120]
[358614566,1745311981249,-151.0,0.00055068,120]
[358614567,1745311981278,-151.0,0.00055068,120]
[358614568,1745311981307,-151.0,0.00055068,30]
[358614569,1745311981524,-165.21245,0.00055068,120]
[358614570,1745311981555,-151.0,0.00055068,120]
[358614571,1745311981583,-155.229973,0.00055068,120]
[358614572,1745311981614,-151.0,0.00055068,120]
[358614573,1745311981642,-155.276307,0.00055068,120]
[358614574,1745311981669,-151.0,0.00055068,120]
[358614575,1745311981697,-151.0,0.00055068,120]
[358614576,1745311981726,-500.0,0.00055068,120]
[358614577,1745311981754,-500.0,0.00055068,120]
[358614578,1745311981786,-500.0,0.00055068,120]
[358614579,1745311981815,-151.0,0.00055068,120]
[358614580,1745311981845,-151.0,0.00055068,120]
[358614581,1745311981876,-151.0,0.00055068,120]
[358614582,1745311981904,-151.0,0.00055068,120]
[358614583,1745311981933,-151.0,0.00055068,120]
[358614584,1745311981963,-530.36,0.00055068,120]
[358614585,1745311981993,-151.0,0.00055068,120]
[358614586,1745311982023,-500.0,0.00055068,120]
[358614587,1745311982054,-151.0,0.00055068,120]
[358614588,1745311982083,-151.0,0.00055068,120]
[358614589,1745311982112,-178.748493,0.00055068,120]
[358614590,1745311982143,-513.88934317,0.00055068,120]
[358614591,1745311982173,-500.0,0.00055068,120]
[358614592,1745311982203,-500.0,0.00055068,120]
[358614593,1745311982232,-500.0,0.00055068,120]
[358614594,1745311982260,-500.0,0.00055068,120]
[358614595,1745311982288,-500.0,0.00055068,120]
[358614596,1745311982329,-500.0,0.00055068,120]
[358614597,1745311982361,-500.0,0.00055068,60]
[358614598,1745311982393,-500.0,0.00055068,120]
[358614599,1745311982423,-500.0,0.00055068,120]
[358614600,1745311982453,-162.942357,0.00055068,120]
[358614601,1745311982483,-500.0,0.00055068,120]
[358614602,1745311982512,-500.0,0.00055068,120]
[358614603,1745311982542,-629.19203167,0.00055068,120]
[358614604,1745311982572,-187.589612,0.00055068,120]
[358614605,1745311982602,-171.5021239,0.00055068,120]
[358614606,1745311982631,-274.57375876,0.00055068,120]
[358614607,1745311982660,-162.72649,0.00055068,120]
[358614608,1745311982688,-151.0,0.00055068,120]
[358614609,1745311982718,-151.0,0.00055068,120]
[358614610,1745311982747,-500.0,0.00055068,120]
[358614611,1745311982777,-500.0,0.00055068,120]
[358614612,1745311982811,-500.0,0.00055068,120]
[358614613,1745311982842,-500.0,0.00055068,120]
[358614614,1745311982873,-500.0,0.00055068,120]
[358614615,1745311982909,-500.0,0.00055068,120]
[358614616,1745311982942,-500.0,0.00055068,120]
[358614617,1745311982974,-823.18,0.00055068,120]
[358614618,1745311983006,-500.0,0.00055068,120]
[358614619,1745311983042,-500.0,0.00055068,120]
[358614620,1745311983075,-163.34006,0.00055068,120]
[358614621,1745311983109,-500.0,0.00055068,120]
[358614622,1745311983142,-151.0,0.00055068,120]
[358614623,1745311983174,-157.586238,0.00055068,120]
[358614624,1745311983209,-2536.313009,0.00055068,120]
[358614625,1745311983240,-500.0,0.00055068,120]
[358614626,1745311983271,-500.0,0.00055068,120]
[358614627,1745311983301,-500.0,0.00055068,120]
[358614628,1745311983331,-500.0,0.00055068,120]
[358614629,1745311983361,-500.0,0.00055068,120]
[358614630,1745311983393,-151.0,0.00055068,120]
[358614631,1745311983425,-500.0,0.00055068,120]
[358614632,1745311983459,-500.0,0.00055068,120]
[358614633,1745311983491,-503.12,0.00055068,120]
[358614634,1745311983523,-521.41462415,0.00055068,120]
[358614635,1745311983556,-500.0,0.00055068,120]
[358614636,1745311983590,-500.0,0.00055068,120]
[358614637,1745311983622,-500.0,0.00055068,120]
[358614638,1745311983654,-500.0,0.00055068,120]
[358614639,1745311983685,-500.0,0.00055068,120]
[358614640,1745311983717,-151.0,0.00055068,60]
[358614641,1745311983748,-500.0,0.00055068,120]
[358614642,1745311983780,-151.0,0.00055068,60]
[358614643,1745311983812,-500.0,0.00055068,120]
[358614644,1745311983844,-500.0,0.00055068,120]
[358614645,1745311983876,-500.0,0.00055068,120]
[358614646,1745311983909,-500.0,0.00055068,120]
[358614647,1745311983946,-356.04570388,0.00055068,120]
[358614648,1745311983979,-500.0,0.00055068,120]
[358614649,1745311984012,-500.0,0.00055068,120]
[358614650,1745311984044,-500.0,0.00055068,120]
[358614651,1745311984074,-500.0,0.00055068,120]
[358614652,1745311984105,-151.0,0.00055068,120]
[358614653,1745311984136,-500.0,0.00055068,120]
[358614654,1745311984167,-500.0,0.00055068,120]
[358614655,1745311984197,-500.0,0.00055068,120]
[358614656,1745311984229,-500.0,0.00055068,120]
[358614657,1745311984261,-500.0,0.00055068,120]
[358614658,1745311984292,-500.0,0.00055068,120]
[358614659,1745311984323,-500.0,0.00055068,30]
[358614660,1745311984354,-567.38374201,0.00055068,120]
[358614661,1745311984391,-280.89558288,0.00055068,120]
[358614662,1745311984424,-500.0,0.00055068,120]
[358614663,1745311984457,-500.0,0.00055068,120]
[358614664,1745311984649,-500.0,0.00055068,120]
[358614665,1745311984684,-500.0,0.00055068,120]
[358614666,1745311984718,-500.0,0.00055068,120]
[358614667,1745311984750,-500.0,0.00055068,120]
[358614668,1745311984783,-500.0,0.00055068,120]
[358614669,1745311984812,-500.0,0.00055068,120]
[358614670,1745311984842,-500.0,0.00055068,120]
[358614671,1745311984872,-500.0,0.00055068,120]
[358614672,1745311984903,-852.99,0.00055068,120]
[358614673,1745311984932,-500.0,0.00055068,120]
[358614674,1745311984964,-1000.0,0.00055068,120]
[358614675,1745311984996,-500.0,0.00055068,120]
[358614676,1745311985028,-394.20147273,0.00055068,120]
[358614677,1745311985060,-500.0,0.00055068,120]
[358614678,1745311985091,-500.0,0.00055068,120]
[358614679,1745311985122,-13988.48,0.00055068,120]
[358614680,1745311985154,-500.0,0.00055068,120]
[358614681,1745311985186,-500.0,0.00055068,120]
[358614682,1745311985218,-5038.92,0.00055068,120]
[358614683,1745311985249,-500.0,0.00055068,120]
[358614684,1745311985279,-500.0,0.00055068,120]
[358614685,1745311985309,-500.0,0.00055068,120]
[358614686,1745311985341,-528.49,0.00055068,120]
[358614687,1745311985373,-500.0,0.00055068,120]
[358614688,1745311985404,-3562.71,0.00055068,120]
[358614689,1745311985436,-500.0,0.00055068,120]
[358614690,1745311985470,-500.0,0.00055068,120]
[358614691,1745311985501,-1681.51,0.00055068,120]
[358614692,1745311985531,-500.0,0.00055068,120]
[358614693,1745311985563,-500.0,0.00055068,120]
[358614694,1745311985593,-500.0,0.00055068,120]
[358614695,1745311985622,-274.99391072,0.00055068,120]
[358614696,1745311985652,-500.0,0.00055068,120]
[358614697,1745311985683,-500.0,0.00055068,120]
[358614698,1745311985714,-500.0,0.00055068,120]
[358614699,1745311985745,-500.0,0.00055068,120]
[358614700,1745311985777,-500.0,0.00055068,120]
[358614701,1745311985811,-1000.0,0.00055068,120]
[358614702,1745311985840,-500.0,0.00055068,120]
[358614703,1745311985868,-500.0,0.00055068,120]
[358614704,1745311985898,-500.0,0.00055068,120]
[358614705,1745311985927,-500.0,0.00055068,120]
[358614706,1745311985956,-500.0,0.00055068,120]
[358614707,1745311985985,-500.0,0.00055068,120]
[358614708,1745311986014,-855.36,0.00055068,120]
[358614709,1745311986043,-500.0,0.00055068,120]
[358614710,1745311986073,-500.0,0.00055068,120]
[358614711,1745311986102,-500.0,0.00055068,120]
[358614712,1745311986132,-500.0,0.00055068,120]
[358614713,1745311986161,-500.0,0.00055068,118]
[358614714,1745311986190,-500.0,0.00055068,120]
[358614715,1745311986218,-500.0,0.00055068,120]
[358614716,1745311986248,-500.0,0.00055068,120]
[358614717,1745311986276,-203.19118068,0.00055068,120]
[358614718,1745311986305,-325.25321108,0.00055068,120]
[358614719,1745311986333,-500.0,0.00055068,120]
[358614720,1745311986361,-500.0,0.00055068,120]
[358614721,1745311986390,-500.0,0.00055068,120]
[358614722,1745311986422,-500.0,0.00055068,120]
[358614723,1745311986452,-500.0,0.00055068,120]
[358614724,1745311986481,-500.0,0.00055068,120]
[358614725,1745311986511,-500.0,0.00055068,120]
[358614726,1745311986540,-386.23223747,0.00055068,120]
[358614727,1745311986569,-988.96,0.00055068,120]
[358614728,1745311986598,-500.0,0.00055068,120]
[358614729,1745311986628,-500.0,0.00055068,120]
[358614730,1745311986656,-500.0,0.00055068,120]
[358614731,1745311986686,-500.0,0.00055068,120]
[358614732,1745311986717,-500.0,0.00055068,120]
[358614733,1745311986747,-500.0,0.00055068,120]
[358614734,1745311986776,-500.0,0.00055068,120]
[358614735,1745311986811,-500.0,0.00055068,120]
[358614736,1745311986843,-500.0,0.00055068,120]
[358614737,1745311986874,-500.0,0.00055068,120]
[358614738,1745311986904,-500.0,0.00055068,120]
[358614739,1745311986935,-524.35,0.00055068,120]
[358614740,1745311986966,-500.0,0.00055068,120]
[358614741,1745311986996,-500.0,0.00055068,120]
[358614742,1745311987026,-500.0,0.00055068,120]
[358614743,1745311987055,-500.0,0.00055068,120]
[358614744,1745311987086,-500.0,0.00055068,120]
[358614745,1745311987115,-500.0,0.00055068,120]
[358614746,1745311987145,-500.0,0.00055068,120]
[358614747,1745311987174,-500.0,0.00055068,120]
[358614748,1745311987202,-795.78,0.00055068,120]
[358614749,1745311987231,-500.0,0.00055068,120]
[358614750,1745311987260,-500.0,0.00055068,120]
[358614751,1745311987289,-500.0,0.00055068,120]
[358614752,1745311987318,-500.0,0.00055068,120]
[358614753,1745311987346,-500.0,0.00055068,120]
[358614754,1745311987375,-500.0,0.00055068,120]
[358614755,1745311987405,-500.0,0.00055068,120]
[358614756,1745311987433,-500.0,0.00055068,120]
[358614757,1745311987463,-500.0,0.00055068,120]
[358614758,1745311987492,-904.36,0.00055068,120]
[358614759,1745311987651,-1191.65,0.00055068,120]
[358614760,1745311987684,-500.0,0.00055068,120]
[358614761,1745311987717,-605.29,0.00055068,120]
[358614762,1745311987748,-252.26,0.00055068,120]
[358614763,1745311987778,-500.0,0.00055068,120]
[358614764,1745311987810,-500.0,0.00055068,120]
[358614765,1745311987839,-999.0,0.00055068,120]
[358614766,1745311987869,-500.0,0.00055068,120]
[358614767,1745311987897,-430.36881673,0.00055068,120]
[358614768,1745311987927,-500.0,0.00055068,120]
[358614769,1745311987957,-500.0,0.00055068,120]
[358614770,1745311987986,-500.0,0.00055068,120]
[358614771,1745311988017,-500.0,0.00055068,60]
[358614772,1745311988046,-635.65,0.00055068,120]
[358614773,1745311988076,-523.03,0.00055068,120]
[358614774,1745311988105,-500.0,0.00055068,120]
[358614775,1745311988135,-500.0,0.00055068,120]
[358614776,1745311988164,-500.0,0.00055068,120]
[358614777,1745311988193,-500.0,0.00055068,120]
[358614778,1745311988222,-500.0,0.00055068,120]
[358614779,1745311988251,-500.0,0.00055068,120]
[358614780,1745311988280,-440.47104316,0.00055068,120]
[358614781,1745311988310,-500.0,0.00055068,120]
[358614782,1745311988338,-500.0,0.00055068,120]
[358614783,1745311988367,-500.0,0.00055068,120]
[358614784,1745311988396,-500.0,0.00055068,120]
[358614785,1745311988424,-500.0,0.00055068,56]
[358614786,1745311988454,-466.65443719,0.00055068,120]
[358614787,1745311988484,-500.0,0.00055068,120]
[358614788,1745311988514,-83185.02,0.00055068,120]
[358614789,1745311988543,-500.0,0.00055068,120]
[358614790,1745311988573,-500.0,0.00055068,120]
[358614791,1745311988604,-150.0,0.00055077,120]
[358614792,1745311988636,-273.21047026,0.00055086,120]
[358614793,1745311988665,-150.0,0.00055094,120]
[358614794,1745311988696,-150.0,0.00055115,120]
[358614795,1745311988724,-273.21047026,0.00055118,120]
[358614796,1745311988752,-150.0,0.00055126,120]
[358614797,1745311988784,-150.0,0.00055132,120]
[358614798,1745311988812,-150.0,0.00055135,120]
[358614799,1745311988842,-150.0,0.00055136,120]
[358614800,1745311988873,-273.21047026,0.00055151,120]
[358614801,1745311988903,-150.0,0.00055172,120]
[358614802,1745311988934,-509.61455883,0.00055178,120]
[358614803,1745311988965,-150.0,0.00055179,120]
[358614804,1745311988995,-150.0,0.00055179,120]
[358614805,1745311989031,-273.21047026,0.00055183,120]
[358614806,1745311989062,-150.0,0.00055204,120]
[358614807,1745311989093,-900.0,0.00055214,120]
[358614808,1745311989125,-273.21047026,0.00055215,120]
[358614809,1745311989155,-150.0,0.00055222,120]
[358614810,1745311989185,-150.0,0.00055237,120]
[358614811,1745311989216,-150.0,0.00055243,120]
[358614812,1745311989247,-273.21047026,0.00055248,120]
[358614813,1745311989277,-150.0,0.00055265,120]
[358614814,1745311989306,-150.0,0.00055266,120]
[358614815,1745311989334,-150.0,0.00055272,120]
[358614816,1745311989365,-900.0,0.00055276,120]
[358614817,1745311989396,-273.21047026,0.0005528,120]
[358614818,1745311989426,-150.0,0.00055307,120]
[358614819,1745311989455,-150.0,0.00055307,120]
[358614820,1745311989485,-216.0,0.0005531,30]
[358614821,1745311989513,-211.0,0.0005531,30]
[358614822,1745311989542,-209.0,0.0005531,30]
[358614823,1745311989572,-273.21047026,0.00055312,120]
[358614824,1745311989603,-2100.0,0.00055329,120]
[358614825,1745311989633,-150.0,0.0005534,120]
[358614826,1745311989663,-500.0,0.00055342,120]
[358614827,1745311989692,-214.122638,0.00055342,120]
[358614828,1745311989722,-214.122638,0.00055342,120]
[358614829,1745311989754,-151.0,0.00055342,120]
[358614830,1745311989788,-159.770567,0.00055342,120]
[358614831,1745311989817,-155.766398,0.00055342,120]
[358614832,1745311989846,-188.511988,0.00055342,120]
[358614833,1745311989877,-500.0,0.00055342,120]
[358614834,1745311989907,-500.0,0.00055342,120]
[358614835,1745311989936,-500.0,0.00055342,120]
[358614836,1745311989964,-530.36,0.00055342,120]
[358614837,1745311989993,-500.0,0.00055342,120]
[358614838,1745311990021,-522.87508909,0.00055342,120]
[358614839,1745311990049,-559.41776247,0.00055342,120]
[358614840,1745311990078,-500.0,0.00055342,120]
[358614841,1745311990108,-500.0,0.00055342,120]
[358614842,1745311990136,-500.0,0.00055342,120]
[358614843,1745311990165,-500.0,0.00055342,60]
[358614844,1745311990192,-500.0,0.00055342,120]
[358614845,1745311990221,-500.0,0.00055342,120]
[358614846,1745311990249,-500.0,0.00055342,120]
[358614847,1745311990276,-500.0,0.00055342,120]
[358614848,1745311990303,-500.0,0.00055342,120]
[358614849,1745311990332,-500.0,0.00055342,120]
[358614850,1745311990360,-500.0,0.00055342,120]
[358614851,1745311990389,-500.0,0.00055342,120]
[358614852,1745311990418,-500.0,0.00055342,120]
[358614853,1745311990449,-500.0,0.00055342,120]
[358614854,1745311990615,-500.0,0.00055342,120]
[358614855,1745311990647,-823.18,0.00055342,120]
[358614856,1745311990679,-500.0,0.00055342,120]
[358614857,1745311990710,-500.0,0.00055342,120]
[358614858,1745311990739,-500.0,0.00055342,120]
[358614859,1745311990767,-500.0,0.00055342,120]
[358614860,1745311990798,-500.0,0.00055342,120]
[358614861,1745311990828,-500.0,0.00055342,120]
[358614862,1745311990858,-500.0,0.00055342,120]
[358614863,1745311990892,-500.0,0.00055342,120]
[358614864,1745311990922,-500.0,0.00055342,120]
[358614865,1745311990954,-500.0,0.00055342,120]
[358614866,1745311990985,-503.12,0.00055342,120]
[358614867,1745311991014,-500.0,0.00055342,120]
[358614868,1745311991042,-645.25029321,0.00055342,120]
[358614869,1745311991070,-500.0,0.00055342,120]
[358614870,1745311991098,-500.0,0.00055342,120]
[358614871,1745311991127,-500.0,0.00055342,120]
[358614872,1745311991157,-500.0,0.00055342,120]
[358614873,1745311991187,-500.0,0.00055342,120]
[358614874,1745311991215,-500.0,0.00055342,120]
[358614875,1745311991243,-541.89893215,0.00055342,120]
[358614876,1745311991270,-500.0,0.00055342,120]
[358614877,1745311991298,-500.0,0.00055342,120]
[358614878,1745311991326,-500.0,0.00055342,120]
[358614879,1745311991354,-500.0,0.00055342,120]
[358614880,1745311991382,-500.0,0.00055342,120]
[358614881,1745311991411,-500.0,0.00055342,120]
[358614882,1745311991439,-500.0,0.00055342,120]
[358614883,1745311991468,-500.0,0.00055342,120]
[358614884,1745311991496,-500.0,0.00055342,120]
[358614885,1745311991525,-500.0,0.00055342,120]
[358614886,1745311991553,-500.0,0.00055342,30]
[358614887,1745311991580,-500.0,0.00055342,120]
[358614888,1745311991610,-500.0,0.00055342,120]
[358614889,1745311991638,-500.0,0.00055342,120]
[358614890,1745311991666,-500.0,0.00055342,120]
[358614891,1745311991694,-500.0,0.00055342,120]
[358614892,1745311991722,-500.0,0.00055342,120]
[358614893,1745311991752,-500.0,0.00055342,120]
[358614894,1745311991782,-500.0,0.00055342,120]
[358614895,1745311991813,-500.0,0.00055342,120]
[358614896,1745311991844,-500.0,0.00055342,120]
[358614897,1745311991875,-852.99,0.00055342,120]
[358614898,1745311991908,-189.6300772,0.00055342,120]
[358614899,1745311991940,-1000.0,0.00055342,120]
[358614900,1745311991974,-500.0,0.00055342,120]
[358614901,1745311992007,-500.0,0.00055342,120]
[358614902,1745311992041,-500.0,0.00055342,120]
[358614903,1745311992075,-13988.48,0.00055342,120]
[358614904,1745311992109,-500.0,0.00055342,120]
[358614905,1745311992145,-500.0,0.00055342,120]
[358614906,1745311992178,-5038.92,0.00055342,120]
[358614907,1745311992210,-500.0,0.00055342,120]
[358614908,1745311992242,-500.0,0.00055342,120]
[358614909,1745311992275,-500.0,0.00055342,120]
[358614910,1745311992307,-528.49,0.00055342,120]
[358614911,1745311992339,-500.0,0.00055342,120]
[358614912,1745311992373,-3562.71,0.00055342,120]
[358614913,1745311992406,-611.77560395,0.00055342,120]
[358614914,1745311992440,-500.0,0.00055342,120]
[358614915,1745311992475,-1681.51,0.00055342,120]
[358614916,1745311992508,-500.0,0.00055342,120]
[358614917,1745311992540,-500.0,0.00055342,120]
[358614918,1745311992573,-500.0,0.00055342,120]
[358614919,1745311992604,-500.0,0.00055342,120]
[358614920,1745311992636,-500.0,0.00055342,120]
[358614921,1745311992668,-500.0,0.00055342,120]
[358614922,1745311992701,-518.21731095,0.00055342,120]
[358614923,1745311992735,-500.0,0.00055342,120]
[358614924,1745311992768,-1000.0,0.00055342,120]
[358614925,1745311992803,-500.0,0.00055342,120]
[358614926,1745311992834,-443.8891566,0.00055342,120]
[358614927,1745311992866,-500.0,0.00055342,120]
[358614928,1745311992899,-500.0,0.00055342,120]
[358614929,1745311992931,-500.0,0.00055342,120]
[358614930,1745311992967,-500.0,0.00055342,120]
[358614931,1745311993002,-855.36,0.00055342,120]
[358614932,1745311993034,-370.04827034,0.00055342,120]
[358614933,1745311993066,-500.0,0.00055342,120]
[358614934,1745311993096,-500.0,0.00055342,120]
[358614935,1745311993128,-500.0,0.00055342,120]
[358614936,1745311993161,-500.0,0.00055342,118]
[358614937,1745311993192,-500.0,0.00055342,120]
[358614938,1745311993224,-500.0,0.00055342,120]
[358614939,1745311993256,-500.0,0.00055342,120]
[358614940,1745311993287,-500.0,0.00055342,120]
[358614941,1745311993317,-500.0,0.00055342,120]
[358614942,1745311993349,-500.0,0.00055342,120]
[358614943,1745311993385,-500.0,0.00055342,120]
[358614944,1745311993418,-500.0,0.00055342,120]
[358614945,1745311993451,-500.0,0.00055342,120]
[358614946,1745311993484,-500.0,0.00055342,120]
[358614947,1745311993517,-988.96,0.00055342,120]
[358614948,1745311993549,-500.0,0.00055342,120]
[358614949,1745311993717,-500.0,0.00055342,120]
[358614950,1745311993750,-426.26434351,0.00055342,120]
[358614951,1745311993780,-500.0,0.00055342,120]
[358614952,1745311993814,-500.0,0.00055342,120]
[358614953,1745311993844,-500.0,0.00055342,120]
[358614954,1745311993874,-500.0,0.00055342,120]
[358614955,1745311993903,-500.0,0.00055342,120]
[358614956,1745311993934,-500.0,0.00055342,120]
[358614957,1745311993965,-500.0,0.00055342,120]
[358614958,1745311993995,-500.0,0.00055342,120]
[358614959,1745311994027,-524.35,0.00055342,120]
[358614960,1745311994059,-500.0,0.00055342,120]
[358614961,1745311994089,-500.0,0.00055342,120]
[358614962,1745311994118,-500.0,0.00055342,120]
[358614963,1745311994148,-500.0,0.00055342,120]
[358614964,1745311994180,-500.0,0.00055342,120]
[358614965,1745311994211,-500.0,0.00055342,120]
[358614966,1745311994240,-500.0,0.00055342,120]
[358614967,1745311994269,-500.0,0.00055342,120]
[358614968,1745311994298,-795.78,0.00055342,120]
[358614969,1745311994326,-500.0,0.00055342,120]
[358614970,1745311994355,-500.0,0.00055342,120]
[358614971,1745311994386,-500.0,0.00055342,120]
[358614972,1745311994415,-500.0,0.00055342,120]
[358614973,1745311994445,-500.0,0.00055342,120]
[358614974,1745311994476,-348.13136987,0.00055342,120]
[358614975,1745311994504,-500.0,0.00055342,120]
[358614976,1745311994534,-500.0,0.00055342,120]
[358614977,1745311994563,-500.0,0.00055342,120]
[358614978,1745311994595,-904.36,0.00055342,120]
[358614979,1745311994627,-1191.65,0.00055342,120]
[358614980,1745311994658,-500.0,0.00055342,120]